bitfinex-derivatives/quotes_SOLF0:USTF0_20250111
["timestamp","ask_amount","ask_price","bid_price","bid_amount"]
[1736614338870,2.6751,186.97,186.94,2.6755]
[1736614339067,121.29888127,186.98,186.88,11.14220318]
[1736614339668,123.97388127,186.98,186.88,11.14220318]
[1736614340171,121.29888127,186.98,186.95,2.6753]
[1736614341170,121.29888127,186.98,186.91,11.14220318]
[1736614341771,123.97378127,186.98,186.91,11.14220318]
[1736614342372,123.97378127,186.98,186.88,11.14220318]
[1736614342770,121.29888127,186.98,186.88,11.14220318]
[1736614343773,11.14220318,186.97,186.85,12.66380318]
[1736614345178,11.14220318,186.97,186.88,2.6763]
[1736614345973,11.14220318,186.94,186.85,1.5216]
[1736614346177,11.14220318,186.91,186.85,1.5216]
[1736614347177,2.6763,186.89,186.85,1.5216]
[1736614347577,11.14220318,186.91,186.85,1.5216]
[1736614349073,2.6762,186.89,186.85,4.1984]
[1736614349675,2.6762,186.89,186.85,1.5216]
[1736614350078,11.14220318,186.91,186.85,1.5216]
[1736614350278,2.6761,186.9,186.86,2.6766]
[1736614351278,11.14220318,186.94,186.85,1.5216]
[1736614351476,11.14220318,186.94,186.89,2.676]
[1736614352076,2.6755,186.93,186.89,2.676]
[1736614352278,2.6755,186.93,186.85,1.5216]
[1736614352478,2.6755,186.93,186.88,2.6762]
[1736614353179,11.14220318,186.94,186.85,1.5216]
[1736614353581,11.14220318,186.96,186.85,12.66380318]
[1736614353781,123.97368127,186.98,186.93,2.6754]
[1736614354077,123.97368127,186.98,186.88,11.14220318]
[1736614355476,121.29888127,186.98,186.88,11.14220318]
[1736614355778,2.6749,186.97,186.88,11.14220318]
[1736614356282,2.6749,186.97,186.9,2.6758]
[1736614356483,2.6749,186.97,186.88,11.14220318]
[1736614356983,2.6749,186.97,186.93,2.6754]
[1736614358281,121.29888127,186.98,186.88,11.14220318]
[1736614358579,121.29888127,186.98,186.96,2.6749]
[1736614359075,121.29888127,186.98,186.88,11.14220318]
[1736614359677,121.29888127,186.98,186.95,2.6751]
[1736614360182,123.97368127,186.98,186.94,2.6753]
[1736614360383,121.29888127,186.98,186.94,2.6753]
[1736614360986,123.97368127,186.98,186.94,2.6753]
[1736614361591,2.675,186.97,186.93,2.6754]
[1736614362589,2.6751,186.96,186.92,2.6756]
[1736614362781,121.29888127,186.98,186.88,11.14220318]
[1736614363583,121.29888127,186.98,186.86,3.2064]
[1736614363788,11.14220318,186.96,186.89,2.6759]
[1736614364189,11.14220318,186.93,186.85,75.1613459]
[1736614365293,2.6759,186.9,186.86,2.6764]
[1736614365796,2.6757,186.91,186.87,2.6763]
[1736614368898,2.6759,186.9,186.87,2.6763]
[1736614369088,11.14220318,186.93,186.85,77.8378459]
[1736614369293,11.14220318,186.93,186.85,76.3162459]
[1736614369794,11.14220318,186.9,186.83,2.6768]
[1736614369990,11.14220318,186.9,186.81,2.06206]
[1736614370398,2.6765,186.86,186.82,2.677]
[1736614370599,11.14220318,186.9,186.81,0.45956]
[1736614371199,11.14220318,186.9,186.81,3.13656]
[1736614372100,2.6764,186.87,186.81,3.13656]
[1736614372496,11.14220318,186.9,186.81,3.13656]
[1736614373403,2.6764,186.87,186.81,3.13656]
[1736614373703,2.6764,186.87,186.82,2.6769]
[1736614375405,2.6764,186.86,186.82,2.6769]
[1736614376207,11.14220318,186.9,186.82,2.6769]
[1736614376408,2.6761,186.89,186.83,2.6767]
[1736614376603,2.6761,186.89,186.81,0.45956]
[1736614376807,5.48,186.92,186.81,0.45956]
[1736614377405,16.62220318,186.93,186.81,0.45956]
[1736614378209,2.6761,186.88,186.81,0.45956]
[1736614379208,2.6761,186.88,186.83,2.6768]
[1736614379411,9.80916269,186.88,186.83,2.6768]
[1736614380409,2.6763,186.87,186.83,2.6768]
[1736614380610,7.13306269,186.88,186.82,7.13306269]
[1736614381506,7.13306269,186.9,186.84,7.13306269]
[1736614382017,5.46,186.95,186.84,7.13306269]
[1736614382309,7.13306269,186.91,186.84,7.13306269]
[1736614382510,9.80886269,186.91,186.86,2.6763]
[1736614383011,7.13306269,186.91,186.86,7.13306269]
[1736614383701,7.13306269,186.91,186.88,2.676]
[1736614384811,7.13306269,186.91,186.86,7.13306269]
[1736614385014,7.13306269,186.93,186.89,2.6759]
[1736614385611,9.80826269,186.95,186.91,2.6757]
[1736614387715,9.80826269,186.95,186.88,7.13306269]
[1736614387716,7.13306269,186.95,186.92,2.6754]
[1736614388108,7.13306269,186.95,186.88,7.13306269]
[1736614388315,9.80796269,186.97,186.93,2.6753]
[1736614388706,7.13306269,186.97,186.93,2.6753]
[1736614389911,7.13306269,186.97,186.91,2.6757]
[1736614389912,2.6752,186.95,186.91,2.6757]
[1736614390220,7.13306269,186.93,186.87,8.81356269]
[1736614390611,9.80856269,186.93,186.9,2.6758]
[1736614390811,121.29888127,186.98,186.89,7.13306269]
[1736614391008,7.13306269,186.95,186.89,7.13306269]
[1736614391518,2.675,186.97,186.93,2.6753]
[1736614392717,132.43540927,186.98,186.93,2.6753]
[1736614392918,2.675,186.96,186.93,2.6753]
[1736614394915,132.43540927,186.98,186.93,2.6753]
[1736614395120,2.6749,186.97,186.93,2.6753]
[1736614395815,2.6749,186.97,186.93,2.61694683]
[1736614396318,2.675,186.96,186.93,2.61694683]
[1736614398716,132.43540927,186.98,186.87,1.6805]
[1736614399019,2.6752,186.95,186.87,1.6805]
[1736614399614,2.675,186.96,186.92,2.6755]
[1736614400519,2.675,186.96,186.93,2.6754]
[1736614400820,2.6749,186.97,186.87,1.6805]
[1736614401320,2.6751,186.96,186.87,1.6805]
[1736614403421,2.6751,186.96,186.93,2.6754]
[1736614405520,11.136528,186.98,186.91,2.6757]
[1736614405820,11.136528,186.98,186.87,1.6805]
[1736614406020,16.596528,187.02,186.89,2.6759]
[1736614406021,2.6756,186.93,186.89,2.6759]
[1736614406223,11.136528,186.95,186.89,2.6759]
[1736614406821,2.6755,186.93,186.9,2.6759]
[1736614407019,2.6755,186.93,186.87,1.6805]
[1736614407622,2.6755,186.93,186.9,2.6759]
[1736614407821,11.136528,186.95,186.87,1.6805]
[1736614408017,2.6756,186.92,186.87,1.6805]
[1736614409127,2.6756,186.92,186.89,2.676]
[1736614410026,2.6755,186.93,186.89,2.676]
[1736614410228,2.6755,186.93,186.87,1.6805]
[1736614410530,11.136528,186.95,186.87,1.6805]
[1736614411017,2.6754,186.94,186.9,2.6759]
[1736614411424,2.6754,186.93,186.9,2.6759]
[1736614412224,7.12874792,186.94,186.92,2.6756]
[1736614412425,7.12874792,186.96,186.89,7.12874792]
[1736614413328,7.12874792,186.96,186.93,2.6753]
[1736614413529,112.08678943,186.99,186.91,7.12874792]
[1736614413732,7.12874792,186.98,186.91,7.12874792]
[1736614415126,9.80344792,186.98,186.94,2.6752]
[1736614416622,2.675,186.96,186.93,2.6754]
[1736614416830,7.12874792,186.96,186.89,7.12874792]
[1736614417833,2.6752,186.95,186.91,2.6756]
[1736614418531,2.6752,186.95,186.92,2.6755]
[1736614425433,7.12874792,186.96,186.87,1.6805]
[1736614425626,7.12874792,186.92,186.87,1.6805]
[1736614425834,7.12874792,186.92,186.84,10.28194792]
[1736614427236,2.676,186.89,186.86,2.6764]
[1736614428942,9.80464792,186.9,186.86,2.6764]
[1736614429142,2.6759,186.9,186.86,2.6764]
[1736614431647,2.6759,186.9,186.87,2.6763]
[1736614435049,2.6759,186.9,186.86,2.6764]
[1736614436140,2.6759,186.9,186.84,10.28194792]
[1736614436346,2.6759,186.9,186.87,2.6763]
[1736614442252,2.676,186.89,186.86,2.6764]
[1736614443048,9.80464792,186.9,186.86,2.6764]
[1736614443347,9.80464792,186.9,186.87,2.6763]
[1736614444248,7.12874792,186.9,186.85,2.6765]
[1736614445153,2.6762,186.88,186.85,2.6765]
[1736614448549,2.676,186.89,186.86,2.6764]
[1736614455260,2.6758,186.91,186.88,2.6761]
[1736614455659,7.12874792,186.93,186.86,7.12874792]
[1736614456155,2.6758,186.91,186.88,2.6761]
[1736614457261,2.6759,186.9,186.87,2.6762]
[1736614457465,7.12874792,186.91,186.84,7.12874792]
[1736614458465,2.676,186.89,186.86,2.6763]
[1736614458663,7.12874792,186.91,186.84,7.12874792]
[1736614460265,2.6759,186.9,186.87,2.6763]
[1736614460661,7.12874792,186.93,186.86,7.12874792]
[1736614461066,2.6758,186.91,186.88,2.6761]
[1736614461365,7.12874792,186.93,186.86,7.12874792]
[1736614462059,2.6759,186.9,186.87,2.6763]
[1736614469061,2.6757,186.92,186.89,2.676]
[1736614469466,7.12874792,186.93,186.87,7.12874792]
[1736614469668,2.6754,186.94,186.91,2.6756]
[1736614469969,9.80414792,186.94,186.91,2.6756]
[1736614472070,7.12874792,186.94,186.9,2.6758]
[1736614472272,2.6754,186.93,186.9,2.6758]
[1736614474167,9.80404792,186.94,186.9,2.6758]
[1736614474768,9.80404792,186.94,186.9,4.1976]
[1736614478966,2.6755,186.93,186.9,4.1976]
[1736614482072,7.12874792,186.94,186.86,3.1768]
[1736614482274,2.6757,186.91,186.88,2.6761]
[1736614488276,117.47278269,187.0,186.86,10.30554792]
[1736614488471,7.12874792,186.96,186.9,7.12874792]
[1736614488676,117.47278269,187.0,186.9,7.12874792]
[1736614488877,7.12874792,186.97,186.9,7.12874792]
[1736614489476,9.80364792,186.97,186.93,2.6753]
[1736614490370,2.6749,186.97,186.93,2.6753]
[1736614491571,2.6749,186.97,186.94,2.6753]
[1736614491772,112.07278269,187.0,186.94,7.12874792]
[1736614492973,7.12874792,187.01,186.96,7.12874792]
[1736614493174,7.12874792,187.03,186.96,7.12874792]
[1736614493379,7.12874792,187.03,186.97,1.6801]
[1736614493573,7.12874792,187.03,186.99,2.6745]
[1736614494473,9.80274792,187.03,186.99,2.6745]
[1736614496876,9.80274792,187.03,186.98,2.6747]
[1736614496877,2.6741,187.02,186.98,2.6747]
[1736614503585,7.12874792,186.99,186.89,7.39055883]
[1736614503777,7.12874792,186.99,186.93,7.12874792]
[1736614504077,2.6748,186.98,186.93,9.80414792]
[1736614504384,7.12874792,186.99,186.93,9.80414792]
[1736614504985,2.675,186.97,186.93,9.80414792]
[1736614506584,14.58422929,187.07,186.93,7.12874792]
[1736614506781,7.12874792,187.0,186.95,2.6751]
[1736614506977,7.12874792,187.0,186.93,7.12874792]
[1736614507280,7.12874792,186.98,186.91,7.12874792]
[1736614509082,2.6749,186.97,186.94,2.6752]
[1736614510990,2.6749,186.97,186.93,2.6754]
[1736614511692,2.6749,186.97,186.94,2.6752]
[1736614516588,14.59053815,187.07,186.93,7.12874792]
[1736614516794,2.6747,186.98,186.95,2.6751]
[1736614517096,7.00970739,187.07,186.95,7.12874792]
[1736614517297,7.12874792,187.01,186.97,2.6748]
[1736614517492,7.12874792,187.01,186.95,7.12874792]
[1736614517697,7.12874792,187.01,186.98,2.6746]
[1736614517997,7.12874792,187.01,186.95,7.12874792]
[1736614518196,2.6742,187.02,186.97,7.12874792]
[1736614518894,8.55360739,187.08,186.99,7.12874792]
[1736614519200,7.12874792,187.05,186.99,7.12874792]
[1736614520094,9.80254792,187.05,187.01,2.6742]
[1736614520293,7.12874792,187.05,187.01,2.6742]
[1736614521202,2.6739,187.04,187.01,2.6742]
[1736614522101,2.6731,187.09,187.05,2.6736]
[1736614522294,7.12874792,187.1,187.03,7.12874792]
[1736614522698,2.6735,187.07,187.03,9.80274792]
[1736614523095,7.12874792,187.13,187.05,7.12874792]
[1736614523299,7.12874792,187.13,187.08,7.12874792]
[1736614524702,2.673,187.1,187.06,9.80224792]
[1736614524997,7.12874792,187.07,187.01,7.12874792]
[1736614525201,7.12874792,187.05,186.99,7.12874792]
[1736614526105,7.12874792,187.07,186.99,7.12874792]
[1736614526403,7.12874792,187.07,187.01,7.12874792]
[1736614527004,2.6738,187.05,187.01,9.80294792]
[1736614527404,7.00437039,187.14,187.01,7.12874792]
[1736614527603,7.12874792,187.09,187.03,7.12874792]
[1736614528004,7.12874792,187.09,187.06,2.6736]
[1736614528302,7.12874792,187.11,187.05,7.12874792]
[1736614529204,9.80164792,187.11,187.07,2.6734]
[1736614530604,2.673,187.1,187.06,2.6735]
[1736614532000,2.673,187.1,187.05,7.12874792]
[1736614532201,2.673,187.1,187.07,2.6734]
[1736614533607,7.12874792,187.11,187.07,2.6734]
[1736614534202,9.80164792,187.11,187.07,2.6734]
[1736614536401,2.6729,187.11,187.07,9.80214792]
[1736614536902,7.12874792,187.13,187.07,7.12874792]
[1736614537101,2.6727,187.12,187.08,2.6732]
[1736614537803,7.12874792,187.13,187.08,2.6732]
[1736614538008,7.12874792,187.11,186.97,1.5861]
[1736614538206,7.12874792,187.11,187.04,7.12874792]
[1736614538608,2.6733,187.09,187.05,2.6737]
[1736614539909,7.12874792,187.13,187.06,7.12874792]
[1736614540208,175.43446713,187.15,187.08,7.12874792]
[1736614540506,2.6729,187.13,187.08,7.12874792]
[1736614540703,7.12874792,187.14,187.08,7.12874792]
[1736614540899,2.6728,187.13,187.08,7.12874792]
[1736614541705,2.6728,187.13,187.09,2.6734]
[1736614542609,2.6735,187.09,187.05,2.674]
[1736614542810,7.12874792,187.1,187.05,2.674]
[1736614543010,7.12874792,187.08,187.03,7.12874792]
[1736614543310,2.6737,187.07,187.03,9.80284792]
[1736614543715,7.12874792,187.08,187.03,9.80284792]
[1736614544512,7.12874792,187.06,186.97,1.5861]
[1736614544812,7.12874792,187.06,186.97,4.7565]
[1736614545010,7.12874792,187.06,186.98,7.12874792]
[1736614545812,9.80264792,187.06,187.01,2.6744]
[1736614546016,7.12874792,187.06,187.01,2.6744]
[1736614546414,2.6741,187.05,187.01,2.6744]
[1736614546714,7.12874792,187.06,187.0,2.6746]
[1736614547514,2.6741,187.04,187.0,2.6746]
[1736614552317,7.12874792,187.06,187.0,2.6746]
[1736614552614,2.6743,187.03,187.0,2.6746]
[1736614553615,2.6741,187.04,187.0,2.6746]
[1736614558415,7.12874792,187.1,187.02,7.12874792]
[1736614558716,7.12874792,187.13,187.06,7.12874792]
[1736614559219,9.80154792,187.13,187.08,2.6735]
[1736614560019,9.80154792,187.13,187.09,2.6734]
[1736614560422,9.80154792,187.13,187.08,2.6735]
[1736614560617,7.12874792,187.13,187.06,7.12874792]
[1736614560817,4.46982706,187.19,187.08,7.12874792]
[1736614561122,182.56321505,187.15,187.1,7.12874792]
[1736614561421,182.56321505,187.15,187.12,2.6729]
[1736614561819,182.56321505,187.15,187.1,7.12874792]
[1736614562019,4.46982706,187.19,187.1,7.12874792]
[1736614562220,11.59857498,187.19,187.12,7.12874792]
[1736614563219,14.27067498,187.19,187.14,2.6726]
[1736614564324,2.6723,187.17,187.12,7.12874792]
[1736614565019,2.6727,187.14,187.11,1.6147]
[1736614565224,7.12874792,187.15,187.09,5.4]
[1736614565517,7.12874792,187.15,187.07,2.6736]
[1736614565722,2.673,187.13,187.08,7.12874792]
[1736614566824,2.673,187.13,187.08,9.80214792]
[1736614567126,9.80174792,187.13,187.08,9.80214792]
[1736614568732,2.673,187.13,187.08,9.80214792]
[1736614570228,2.673,187.13,187.09,2.6734]
[1736614571829,7.12874792,187.15,187.11,2.6731]
[1736614572030,2.6725,187.16,187.11,2.6731]
[1736614572330,7.12874792,187.17,187.11,2.6731]
[1736614573233,7.12874792,187.17,187.13,2.6728]
[1736614574234,9.80114792,187.17,187.13,2.6728]
[1736614575934,11.59857498,187.19,187.14,2.6725]
[1736614576134,4.46982706,187.19,187.14,9.80124792]
[1736614576335,4.46982706,187.19,187.14,7.12874792]
[1736614577130,382.99649801,187.34,187.17,7.12874792]
[1736614577327,7.12874792,187.28,187.21,7.12874792]
[1736614578240,2.6713,187.24,187.21,7.12874792]
[1736614579830,7.12874792,187.27,187.21,7.12874792]
[1736614580031,7.12874792,187.23,187.16,7.12874792]
[1736614580235,7.12874792,187.21,187.16,7.12874792]
[1736614580632,2.6719,187.2,187.16,7.12874792]
[1736614580834,7.12874792,187.21,187.16,7.12874792]
[1736614581036,7.12874792,187.23,187.16,7.12874792]
[1736614581235,2.6709,187.27,187.16,9.80114792]
[1736614581437,7.12874792,187.23,187.16,9.80114792]
[1736614581939,2.6714,187.24,187.19,2.6719]
[1736614583345,2.6714,187.23,187.19,2.6719]
[1736614585151,2.6714,187.23,187.19,9.80064792]
[1736614586553,2.6717,187.21,187.16,9.80104792]
[1736614586753,2.6717,187.21,187.16,7.12874792]
[1736614587455,2.672,187.19,187.16,7.12874792]
[1736614588356,7.12874792,187.21,187.14,8.69824792]
[1736614588653,7.12874792,187.21,187.14,11.37094792]
[1736614588954,2.6722,187.18,187.14,8.69824792]
[1736614589149,2.6722,187.18,187.16,7.12874792]
[1736614595156,7.12874792,187.21,187.16,7.12874792]
[1736614595357,7.12874792,187.21,187.2,12.3278]
[1736614596161,9.80044792,187.21,187.2,12.3278]
[1736614602374,2.6717,187.21,187.2,12.3278]
[1736614603765,2.6716,187.22,187.2,12.3278]
[1736614605169,7.12874792,187.25,187.2,12.3278]
[1736614605462,2.6717,187.21,187.2,12.3278]
[1736614609266,2.6717,187.21,187.2,19.45654792]
[1736614609862,7.12874792,187.27,187.2,19.45654792]
[1736614610163,2.6716,187.22,187.2,19.45654792]
[1736614610365,7.12874792,187.27,187.2,19.45654792]
[1736614610570,2.6713,187.24,187.22,7.12874792]
[1736614611769,2.6711,187.25,187.22,7.12874792]
[1736614616066,85.82229892,187.29,187.24,7.12874792]
[1736614617176,2.6707,187.28,187.24,7.12874792]
[1736614617669,2.6711,187.26,187.24,7.12874792]
[1736614617869,85.82229892,187.29,187.24,7.12874792]
[1736614619074,2.6709,187.27,187.24,7.12874792]
[1736614621374,85.82229892,187.29,187.24,7.12874792]
[1736614621576,7.12874792,187.33,187.28,7.12874792]
[1736614621774,7.12874792,187.35,187.28,7.12874792]
[1736614623282,2.6704,187.31,187.28,7.12874792]
[1736614623476,7.12874792,187.35,187.28,7.12874792]
[1736614623779,2.6701,187.32,187.28,7.12874792]
[1736614625775,7.12874792,187.35,187.28,2.6705]
[1736614625981,2.67,187.33,187.3,7.12874792]
[1736614631178,7.12874792,187.37,187.3,9.79914792]
[1736614631784,2.6699,187.34,187.3,9.79914792]
[1736614637488,2.6699,187.34,187.32,7.12874792]
[1736614643485,2.6703,187.31,187.3,12.3278]
[1736614643785,9.79904792,187.31,187.3,12.3278]
[1736614646590,2.6711,187.25,187.23,7.12874792]
[1736614647180,7.12874792,187.27,187.21,7.12874792]
[1736614647386,7.12874792,187.25,187.19,1.5374]
[1736614648086,2.6717,187.22,187.19,1.5374]
[1736614648491,7.12874792,187.25,187.17,7.12874792]
[1736614649290,7.12874792,187.25,187.19,7.12874792]
[1736614650494,2.6717,187.22,187.19,7.12874792]
[1736614653589,7.12874792,187.26,187.19,7.12874792]
[1736614653786,7.12874792,187.26,187.14,3.2471]
[1736614653787,2.6714,187.24,187.21,7.12874792]
[1736614653996,7.12874792,187.28,187.21,7.12874792]
[1736614654595,2.6715,187.23,187.21,7.12874792]
[1736614657302,1.6038,187.34,187.21,7.12874792]
[1736614657496,7.12874792,187.29,187.23,7.12874792]
[1736614658597,7.12874792,187.31,187.25,7.12874792]
[1736614661309,2.6707,187.28,187.25,7.12874792]
[1736614667005,2.6707,187.28,187.27,7.12874792]
[1736614669106,7.12874792,187.33,187.27,7.12874792]
[1736614669405,2.6705,187.3,187.27,7.12874792]
[1736614670307,2.6705,187.29,187.27,7.12874792]
[1736614683209,2.6707,187.28,187.27,7.12874792]
[1736614683611,2.6707,187.28,187.25,7.12874792]
[1736614683809,2.671,187.26,187.24,7.12874792]
[1736614684009,7.12874792,187.3,187.24,7.12874792]
[1736614685817,2.6709,187.27,187.24,7.12874792]
[1736614692619,2.6707,187.28,187.26,7.12874792]
[1736614693428,7.12874792,187.33,187.26,7.12874792]
[1736614693619,2.6704,187.3,187.28,7.12874792]
[1736614695825,2.6704,187.3,187.23,2.6713]
[1736614696030,2.6704,187.3,187.27,7.12874792]
[1736614698532,14.57793332,187.36,187.27,7.12874792]
[1736614698826,2.6702,187.32,187.27,9.79944792]
[1736614699431,2.6703,187.31,187.27,9.79944792]
[1736614700134,2.6703,187.31,187.29,7.12874792]
[1736614700726,2.6698,187.34,187.29,9.79924792]
[1736614700927,2.6698,187.34,187.31,7.12874792]
[1736614703428,14.58412068,187.38,187.33,7.12874792]
[1736614703632,2.6697,187.35,187.33,7.12874792]
[1736614706036,2.6697,187.35,187.31,7.12874792]
[1736614706434,7.12874792,187.37,187.28,3.1958]
[1736614706636,7.12874792,187.35,187.28,10.32454792]
[1736614706834,7.12874792,187.35,187.28,7.12874792]
[1736614707235,2.6704,187.3,187.28,7.12874792]
[1736614708938,2.6705,187.29,187.28,7.12874792]
[1736614714737,2.6704,187.3,187.28,7.12874792]
[1736614716737,7.12874792,187.37,187.28,9.79944792]
[1736614716942,7.12874792,187.37,187.31,7.12874792]
[1736614717847,7.02735941,187.38,187.31,7.12874792]
[1736614718047,21.73988675,187.38,187.31,7.12874792]
[1736614718950,14.15610733,187.38,187.31,7.12874792]
[1736614719148,2.6701,187.33,187.31,7.12874792]
[1736614719650,14.15610733,187.38,187.31,7.12874792]
[1736614719853,2.6697,187.35,187.31,7.12874792]
[1736614721151,2.6697,187.35,187.31,9.79894792]
[1736614721755,2.6697,187.35,187.31,7.12874792]
[1736614724751,7.12874792,187.36,187.28,2.6706]
[1736614724952,7.12874792,187.36,187.29,7.12874792]
[1736614727253,7.12874792,187.36,187.27,1.566]
[1736614727552,7.12874792,187.34,187.28,7.12874792]
[1736614728754,2.6704,187.31,187.28,7.12874792]
[1736614733857,2.6701,187.33,187.28,9.79934792]
[1736614734057,2.6701,187.33,187.3,7.12874792]
[1736614734259,7.12874792,187.36,187.3,7.12874792]
[1736614735262,2.6701,187.33,187.3,7.12874792]
[1736614738265,21.73457822,187.38,187.32,7.12874792]
[1736614738466,14.15240932,187.38,187.32,7.12874792]
[1736614739064,2.6698,187.35,187.32,7.12874792]
[1736614740766,92.89794781,187.38,187.32,7.12874792]
[1736614740969,7.12874792,187.36,187.3,7.12874792]
[1736614742275,2.6699,187.34,187.3,7.12874792]
[1736614744667,2.67,187.33,187.3,7.12874792]
[1736614744874,7.12874792,187.36,187.3,7.12874792]
[1736614745478,7.12874792,187.34,187.27,1.566]
[1736614745673,7.12874792,187.34,187.27,8.69474792]
[1736614746177,2.6705,187.3,187.27,8.69474792]
[1736614747673,7.12874792,187.34,187.29,7.12874792]
[1736614747874,2.6703,187.31,187.29,7.12874792]
[1736614755282,2.6703,187.31,187.27,8.69474792]
[1736614755485,2.6705,187.3,187.27,8.69474792]
[1736614760292,7.12874792,187.34,187.25,110.78844244]
[1736614760594,7.12874792,187.32,187.26,7.12874792]
[1736614761893,7.12874792,187.32,187.25,110.78844244]
[1736614762193,7.12874792,187.3,187.24,7.12874792]
[1736614763096,2.6711,187.25,187.24,7.12874792]
[1736614766693,7.12874792,187.3,187.24,7.12874792]
[1736614766895,2.6709,187.27,187.24,7.12874792]
[1736614767795,2.6709,187.27,187.26,7.12874792]
[1736614769899,2.6707,187.28,187.26,7.12874792]
[1736614771695,7.12874792,187.32,187.26,7.12874792]
[1736614771898,2.6706,187.29,187.26,7.12874792]
[1736614773403,2.6704,187.3,187.26,7.12874792]
[1736614774000,2.6705,187.3,187.26,7.12874792]
[1736614775997,2.6707,187.29,187.24,2.6712]
[1736614776197,2.6707,187.29,187.25,7.12874792]
[1736614777503,2.6707,187.29,187.25,9.79984792]
[1736614779897,7.12874792,187.34,187.27,7.12874792]
[1736614781109,9.79874792,187.34,187.29,9.79924792]
[1736614781408,9.79874792,187.34,187.29,7.12874792]
[1736614783109,2.6701,187.33,187.28,7.12874792]
[1736614783710,2.6701,187.33,187.28,9.79934792]
[1736614785512,2.6701,187.32,187.28,9.79934792]
[1736614789013,7.12874792,187.34,187.28,7.12874792]
[1736614789312,2.67,187.33,187.29,2.6705]
[1736614795315,2.6701,187.32,187.28,9.79944792]
[1736614800217,7.12874792,187.34,187.28,7.12874792]
[1736614800421,7.12874792,187.32,187.26,7.12874792]
[1736614800622,7.12874792,187.32,187.24,7.12874792]
[1736614801622,2.6706,187.29,187.25,2.671]
[1736614802426,2.6706,187.29,187.26,9.79974792]
[1736614802618,2.6704,187.31,187.26,7.12874792]
[1736614803526,2.6704,187.31,187.28,2.6706]
[1736614804018,2.6704,187.31,187.28,9.79934792]
[1736614806418,2.6702,187.32,187.28,9.79934792]
[1736614808221,7.12874792,187.34,187.29,2.6705]
[1736614808222,2.67,187.33,187.29,2.6705]
[1736614809123,2.6698,187.35,187.3,9.79904792]
[1736614809530,2.6698,187.35,187.3,7.12874792]
[1736614810828,2.6698,187.35,187.3,9.79914792]
[1736614811925,7.12874792,187.36,187.24,5.38]
[1736614812126,7.12874792,187.34,187.27,7.12874792]
[1736614812833,2.6701,187.32,187.27,7.12874792]
[1736614813029,2.6701,187.32,187.29,7.12874792]
[1736614813229,14.60627801,187.4,187.29,7.12874792]
[1736614813430,2.6699,187.34,187.3,2.6703]
[1736614813733,7.12874792,187.36,187.29,7.12874792]
[1736614815131,2.6697,187.35,187.31,2.6702]
[1736614815324,2.6697,187.35,187.31,9.79894792]
[1736614816627,2.6695,187.36,187.33,7.12874792]
[1736614818637,2.6694,187.38,187.34,2.6698]
[1736614819335,2.6694,187.38,187.34,4.2328]
[1736614820137,7.12874792,187.39,187.34,1.563]
[1736614821047,2.6695,187.37,187.34,1.563]
[1736614821444,7.12874792,187.39,187.34,1.563]
[1736614821645,7.12874792,187.37,187.34,1.563]
[1736614821848,2.6697,187.36,187.34,1.563]
[1736614824345,2.6697,187.35,187.34,1.563]
[1736614824552,7.12874792,187.36,187.29,3.1276]
[1736614824752,7.12874792,187.36,187.29,10.25634792]
[1736614825250,2.67,187.33,187.29,12.92674792]
[1736614827248,2.6701,187.32,187.29,10.25634792]
[1736614827448,2.6701,187.32,187.29,3.1276]
[1736614829956,7.12874792,187.34,187.28,108.11659332]
[1736614830454,2.6701,187.33,187.28,108.11659332]
[1736614830659,7.12874792,187.34,187.28,108.11659332]
[1736614831347,2.6705,187.3,187.28,108.11659332]
[1736614832455,2.6705,187.3,187.26,9.79964792]
[1736614832752,7.12874792,187.3,187.25,1.6053]
[1736614832958,7.12874792,187.28,187.22,3.2251]
[1736614833161,5.38,187.34,187.21,7.12874792]
[1736614833162,7.12874792,187.26,187.21,7.12874792]
[1736614833452,1.5853,187.33,187.19,4.2162]
[1736614833656,2.6714,187.24,187.2,7.12874792]
[1736614834563,7.12874792,187.27,187.2,9.80054792]
[1736614834755,7.12874792,187.25,187.19,1.5444]
[1736614834954,7.12874792,187.23,187.19,1.5444]
[1736614835259,2.672,187.19,187.17,3.3405]
[1736614835455,7.12874792,187.19,187.14,1.5501]
[1736614835954,7.12874792,187.17,187.11,7.33838968]
[1736614836253,7.12874792,187.13,187.11,7.33838968]